bitfinex/quotes_SOLUSD_20250811
["timestamp","ask_amount","ask_price","bid_price","bid_amount"]
[1754873084787,53.14423125,182.32,182.31,0.06]
[1754873084986,68.25044682,182.32,182.31,0.06]
[1754873086499,9.56269532,182.32,182.31,0.75]
[1754873086701,53.12423125,182.32,182.31,0.06]
[1754873087302,68.23044682,182.32,182.31,0.06]
[1754873088588,68.23044682,182.32,182.31,0.75]
[1754873088789,53.12423125,182.32,182.31,0.75]
[1754873089497,4.07783354,182.32,182.31,0.75]
[1754873090020,13.52423125,182.32,182.31,0.75]
[1754873091923,13.52423125,182.32,182.31,0.06]
[1754873092792,28.63044682,182.32,182.31,0.06]
[1754873094711,28.62732467,182.32,182.31,0.06]
[1754873096114,28.62732467,182.32,182.31,0.75]
[1754873096622,28.62732467,182.32,182.31,0.06]
[1754873097622,28.62748941,182.32,182.31,0.06]
[1754873098012,28.62748941,182.32,182.31,1e-08]
[1754873100446,24.66595348,182.32,182.31,1e-08]
[1754873100616,13.52127384,182.32,182.31,0.71000001]
[1754873100822,15.71901584,182.32,182.31,0.71000001]
[1754873101027,13.52127384,182.32,182.31,0.71000001]
[1754873101228,28.62748941,182.32,182.31,1e-08]
[1754873101738,30.00000293,182.32,182.31,1e-08]
[1754873102036,30.70000293,182.32,182.31,1e-08]
[1754873102645,32.89774493,182.32,182.31,1e-08]
[1754873103218,32.89774493,182.32,182.27,0.77]
[1754873103219,15.10621557,182.28,182.27,0.06]
[1754873103551,26.0,182.26,182.25,0.06]
[1754873103847,94.87512844,182.26,182.25,0.06]
[1754873104653,99.53666444,182.26,182.25,0.06]
[1754873104944,100.90968585,182.26,182.25,0.06]
[1754873105111,99.53666444,182.26,182.25,0.06]
[1754873105312,98.83666444,182.26,182.25,0.06]
[1754873106324,99.53666444,182.26,182.25,0.06]
[1754873108351,99.53236631,182.26,182.25,0.06]
[1754873108957,99.53236631,182.26,182.25,1e-08]
[1754873109113,100.90546838,182.26,182.25,1e-08]
[1754873109519,60.64546838,182.26,182.25,1e-08]
[1754873109727,98.83236631,182.26,182.25,1e-08]
[1754873110030,100.20546838,182.26,182.25,1e-08]
[1754873110246,99.53236631,182.26,182.25,1e-08]
[1754873110423,98.83236631,182.26,182.25,1e-08]
[1754873110625,128.83236631,182.26,182.25,1e-08]
[1754873110920,128.84653289,182.26,182.25,1e-08]
[1754873111121,128.14653289,182.26,182.25,1e-08]
[1754873112246,98.14653289,182.26,182.25,1e-08]
[1754873112535,98.83236631,182.26,182.25,1e-08]
[1754873113741,128.83236631,182.26,182.25,1e-08]
[1754873113934,128.14653289,182.26,182.25,1e-08]
[1754873115772,128.84653289,182.26,182.25,1e-08]
[1754873115950,98.84653289,182.26,182.25,1e-08]
[1754873116152,99.53236631,182.26,182.25,1e-08]
[1754873116864,99.53236631,182.26,182.19,0.06]
[1754873116865,3.96153593,182.21,182.19,0.06]
[1754873117063,53.75881982,182.2,182.19,0.06]
[1754873117237,53.75881982,182.2,182.19,0.77]
[1754873118048,49.79728389,182.2,182.19,0.77]
[1754873118247,44.30880969,182.2,182.19,0.77]
[1754873118457,44.2075952,182.2,182.19,0.77]
[1754873118664,68.86267374,182.2,182.19,0.06]
[1754873119369,53.75645817,182.2,182.19,0.77]
[1754873119584,49.79492224,182.2,182.19,0.77]
[1754873119739,49.6960694,182.2,182.19,0.77]
[1754873120157,44.2075952,182.2,182.19,0.77]
[1754873120374,49.6960694,182.2,182.19,0.77]
[1754873120878,53.75488945,182.2,182.19,0.77]
[1754873122060,49.6960694,182.2,182.19,0.77]
[1754873122275,53.75436897,182.2,182.19,0.06]
[1754873122574,69.56058454,182.2,182.19,0.06]
[1754873123173,79.01354154,182.2,182.19,0.06]
[1754873123671,78.31354154,182.2,182.19,0.06]
[1754873125281,79.01354154,182.2,182.19,0.06]
[1754873125575,79.01210825,182.2,182.19,0.06]
[1754873125786,74.35057232,182.2,182.19,0.06]
[1754873125947,78.31210825,182.2,182.19,0.06]
[1754873126145,68.85915125,182.2,182.19,0.06]
[1754873127072,69.55915125,182.2,182.17,0.06]
[1754873127380,19.0677515,182.18,182.17,0.06]
[1754873127548,63.35075237,182.18,182.17,0.06]
[1754873127876,68.8398291,182.18,182.17,0.06]
[1754873128861,64.87829317,182.18,182.17,0.06]
[1754873129064,68.8398291,182.18,182.17,0.06]
[1754873130297,98.8398291,182.18,182.17,0.74]
[1754873130593,83.73361353,182.18,182.17,0.74]
[1754873131172,53.73361353,182.18,182.17,0.74]
[1754873131582,53.73361353,182.18,182.17,0.06]
[1754873132097,49.7720776,182.18,182.17,0.74]
[1754873132390,44.28300087,182.18,182.17,0.74]
[1754873132555,4.05686628,182.18,182.17,0.74]
[1754873133065,13.50747894,182.18,182.17,0.74]
[1754873133264,13.50747894,182.18,182.17,0.06]
[1754873134091,13.50747894,182.18,182.17,0.74]
[1754873134389,4.05686628,182.18,182.17,0.74]
[1754873134772,8.01840221,182.18,182.17,0.74]
[1754873135290,13.50747894,182.18,182.17,0.06]
[1754873135489,4.05686628,182.18,182.17,0.74]
[1754873137595,13.50747894,182.18,182.17,0.06]
[1754873137759,9.54594301,182.18,182.17,0.06]
[1754873138086,13.50747894,182.18,182.17,0.06]
[1754873138268,4.05686628,182.18,182.17,0.74]
[1754873139476,4.05686628,182.18,182.17,4.70153593]
[1754873139683,4.05686628,182.18,182.17,10.19091398]
[1754873139871,0.68594633,182.23,182.17,10.19091398]
[1754873140075,4.06269315,182.22,182.2,3.96153593]
[1754873140277,6.17340831,182.24,182.21,0.68]
[1754873140489,4.06455855,182.23,182.21,0.68]
[1754873140794,4.75050488,182.23,182.22,0.68]
[1754873140997,4.06455855,182.23,182.22,0.68]
[1754873143908,0.68579579,182.27,182.22,10.12940773]
[1754873144083,4.06974735,182.26,182.23,0.68]
[1754873144271,0.03,182.29,182.25,3.96153593]
[1754873144469,0.03,182.29,182.23,0.68]
[1754873144470,4.10081328,182.29,182.26,4.64153593]
[1754873144689,4.10081328,182.29,182.22,19.2075513]
[1754873144690,4.10081328,182.29,182.27,0.68]
[1754873145398,4.10081328,182.29,182.28,0.68]
[1754873146627,9.58657772,182.29,182.28,0.68]
[1754873147616,4.10081328,182.29,182.28,0.68]
[1754873148095,0.03,182.29,182.28,0.68]
[1754873148496,0.03,182.29,182.28,4.64153593]
[1754873148696,0.03,182.29,182.28,0.68]
[1754873150395,4.10413359,182.29,182.28,0.68]
[1754873151112,0.03,182.29,182.28,0.68]
[1754873151916,4.10687285,182.29,182.28,0.68]
[1754873152121,0.03,182.29,182.28,0.68]
[1754873152620,0.03,182.29,182.24,5.48719212]
[1754873152824,4.10433817,182.29,182.25,0.68]
[1754873152999,0.68575817,182.28,182.25,0.68]
[1754873153193,0.68575817,182.28,182.26,0.68]
[1754873153397,0.03,182.29,182.27,3.96153593]
[1754873153918,0.03,182.29,182.28,0.68]
[1754873155193,0.03,182.29,182.28,4.64153593]
[1754873155997,0.03,182.29,182.28,0.68]
[1754873156191,0.71572055,182.29,182.26,3.96153593]
[1754873156396,0.71572055,182.29,182.26,0.68]
[1754873156594,0.71572055,182.29,182.25,3.96153593]
[1754873156595,0.71572055,182.29,182.27,0.68]
[1754873157432,6.2014935,182.29,182.25,4.64153593]
[1754873157608,10.16302943,182.29,182.23,3.96153593]
[1754873157812,3.96153593,182.27,182.2,39.5]
[1754873158127,4.64736935,182.26,182.21,4.64153593]
[1754873158292,4.64736935,182.26,182.21,3.96153593]
[1754873158496,10.13419408,182.26,182.22,0.68]
[1754873158725,6.17265815,182.26,182.22,0.68]
[1754873158999,6.17265815,182.26,182.22,4.64153593]
[1754873159195,6.17265815,182.26,182.23,0.68]
[1754873160541,6.17265815,182.26,182.22,3.96153593]
[1754873160740,6.87265815,182.26,182.21,4.67153593]
[1754873160927,4.66153593,182.25,182.19,4.67153593]
[1754873161133,0.68590869,182.24,182.19,0.71]
[1754873161326,4.64744462,182.24,182.2,0.71]
[1754873161942,5.34744462,182.24,182.2,0.71]
[1754873162127,5.48757065,182.23,182.2,0.71]
[1754873162449,0.68598397,182.22,182.18,4.67153593]
[1754873162838,0.68598397,182.22,182.19,0.71]
[1754873163039,4.6475199,182.22,182.17,4.02153593]
[1754873163228,0.68598397,182.22,182.18,0.71]
[1754873163833,0.68598397,182.22,182.19,0.71]
[1754873164226,0.68598397,182.22,182.2,0.71]
[1754873165647,0.68598397,182.22,182.18,3.96153593]
[1754873165949,6.17392509,182.22,182.18,3.96153593]
[1754873166147,6.17392509,182.22,182.19,0.71]
[1754873167825,0.7,182.21,182.18,0.06]
[1754873168044,0.68605927,182.2,182.18,0.06]
[1754873169127,0.68602162,182.21,182.18,0.06]
[1754873169351,0.68594633,182.23,182.19,4.67153593]
[1754873169531,1.38594633,182.23,182.19,4.67153593]
[1754873169733,1.38594633,182.23,182.19,0.71]
[1754873170827,0.68594633,182.23,182.19,0.71]
[1754873171053,0.68594633,182.23,182.18,9.51061183]
[1754873171327,0.68594633,182.23,182.2,0.71]
[1754873172755,0.68587105,182.25,182.22,3.96153593]
[1754873172950,0.68590869,182.24,182.22,4.67153593]
[1754873173255,4.67736935,182.26,182.22,0.71]
[1754873173435,4.06711996,182.25,182.22,0.71]
[1754873174365,6.17321148,182.24,182.2,4.67153593]
[1754873174736,6.87321148,182.24,182.2,0.71]
[1754873175566,6.17321148,182.24,182.18,0.77]
[1754873175863,3.96153593,182.22,182.18,0.06]
[1754873176163,5.4884742,182.2,182.18,0.06]
[1754873177247,1.38609693,182.19,182.18,0.06]
[1754873178069,0.68609693,182.19,182.18,0.06]
[1754873178440,6.17420251,182.21,182.18,4.73153593]
[1754873178645,0.68602162,182.21,182.19,0.71]
[1754873179176,0.68602162,182.21,182.18,4.02153593]
[1754873179337,0.68602162,182.21,182.18,0.06]
[1754873179534,0.68602162,182.21,182.18,0.77]
[1754873180674,0.68590869,182.24,182.2,3.96153593]
[1754873180843,4.07596125,182.23,182.21,0.71]
[1754873181165,4.67736935,182.26,182.22,0.71]
[1754873181338,4.0771411,182.25,182.23,0.71]
[1754873181542,4.0771411,182.24,182.23,0.71]
[1754873182062,4.0771411,182.24,182.23,4.67153593]
[1754873182279,4.0771411,182.25,182.23,4.67153593]
[1754873182445,4.0771411,182.24,182.23,3.96153593]
[1754873183082,4.0771411,182.24,182.23,4.67153593]
[1754873183392,4.08192761,182.24,182.23,4.67153593]
[1754873184055,0.03,182.26,182.23,10.15899864]
[1754873184250,0.03,182.26,182.25,3.96153593]
[1754873184567,4.11305746,182.26,182.25,3.96153593]
[1754873184747,4.11305746,182.26,182.25,4.67153593]
[1754873184948,4.11305746,182.26,182.25,0.71]
[1754873185760,0.03,182.26,182.25,4.67153593]
[1754873186076,4.11305746,182.26,182.25,4.67153593]
[1754873186276,4.11305746,182.26,182.25,3.96153593]
[1754873186967,4.11305746,182.26,182.24,3.96153593]
[1754873187170,4.08305746,182.25,182.24,4.67153593]
[1754873188176,4.08214173,182.25,182.24,4.67153593]
[1754873188859,4.08214173,182.25,182.22,4.67153593]
[1754873189067,4.08214173,182.25,182.2,5.48840075]
[1754873189068,4.08214173,182.24,182.21,3.96153593]
[1754873189371,4.08214173,182.23,182.21,3.96153593]
[1754873189577,6.17287449,182.25,182.21,3.96153593]
[1754873189776,4.08223822,182.24,182.21,4.68153593]
[1754873189982,4.08223822,182.23,182.21,4.68153593]
[1754873190179,6.87287449,182.25,182.21,4.68153593]
[1754873190390,4.08225702,182.24,182.21,4.68153593]
[1754873190601,4.08225702,182.23,182.21,4.68153593]
[1754873190800,6.87287449,182.25,182.21,4.68153593]
[1754873191095,4.78233615,182.24,182.2,3.96153593]
[1754873191275,4.76828248,182.23,182.2,3.96153593]
[1754873191603,0.68594633,182.23,182.2,3.96153593]
[1754873191808,0.7,182.23,182.2,3.96153593]
[1754873192600,0.68590869,182.24,182.2,4.68153593]
[1754873192797,4.08289575,182.23,182.2,4.68153593]
[1754873192997,6.1732091,182.24,182.2,3.96153593]
[1754873192998,4.76887972,182.22,182.2,3.96153593]
[1754873193162,0.68598397,182.22,182.2,3.96153593]
[1754873193563,0.68594633,182.23,182.2,3.96153593]
[1754873193874,4.08247831,182.22,182.2,3.96153593]
[1754873194379,6.1735675,182.23,182.2,3.96153593]
[1754873194555,4.08283443,182.22,182.2,3.96153593]
[1754873194758,6.8735675,182.23,182.2,3.96153593]
[1754873194974,4.08290697,182.22,182.2,3.96153593]
[1754873195191,4.08290697,182.22,182.19,0.06]
[1754873195395,6.8735675,182.23,182.2,3.96153593]
[1754873195593,4.08273777,182.22,182.2,3.96153593]
[1754873196496,6.8735675,182.23,182.2,3.96153593]
[1754873196701,14.23137825,182.22,182.19,0.06]
[1754873196895,4.76797391,182.21,182.19,0.06]
[1754873197070,4.08195229,182.2,182.19,0.06]
[1754873197605,0.68602162,182.21,182.19,0.06]
[1754873197985,4.08158855,182.2,182.19,0.06]
[1754873198403,4.08158855,182.2,182.19,4.02153593]
[1754873198587,0.68598397,182.22,182.19,4.74153593]
[1754873198786,4.08205832,182.21,182.19,4.74153593]
[1754873198986,0.68598397,182.22,182.19,4.74153593]
[1754873198987,0.68598397,182.22,182.2,0.72]
[1754873199293,0.68587105,182.25,182.21,3.96153593]
[1754873199614,4.08315467,182.24,182.23,3.96153593]
[1754873199899,4.08315467,182.24,182.23,4.68153593]
[1754873200316,4.78315467,182.24,182.2,3.96153593]
[1754873200515,4.08315467,182.23,182.21,3.96153593]
[1754873200678,4.08315467,182.22,182.21,4.68153593]
[1754873202299,4.08315467,182.22,182.21,3.96153593]
[1754873202506,4.08315467,182.22,182.2,3.96153593]
[1754873202803,4.08315467,182.22,182.19,6.26876736]
[1754873202804,4.08315467,182.21,182.19,5.54876736]
[1754873203105,0.68590869,182.24,182.19,5.54876736]
[1754873203308,4.08636706,182.23,182.2,0.72]
[1754873203605,4.08636706,182.22,182.2,0.72]
[1754873203800,4.08636706,182.21,182.2,0.72]
[1754873204008,4.08636706,182.21,182.2,4.68153593]
[1754873204603,4.08636706,182.21,182.19,0.06]
[1754873204604,4.78636706,182.21,182.19,0.06]
[1754873204811,4.08636706,182.2,182.19,0.06]
[1754873205688,8.74790299,182.2,182.19,0.06]
[1754873206313,14.23637719,182.2,182.19,0.06]
[1754873206490,30.02865203,182.2,182.19,0.06]
[1754873212297,10.26090053,182.2,182.19,0.06]
[1754873213724,4.77242633,182.2,182.19,0.78]
[1754873213903,4.08636706,182.2,182.19,4.74153593]
[1754873214098,4.07953024,182.2,182.19,0.78]
[1754873214409,4.07953024,182.2,182.19,0.06]
[1754873215219,4.07950236,182.2,182.19,0.06]
[1754873217227,4.07950236,182.2,182.19,4.74153593]
[1754873217535,4.07950236,182.2,182.19,0.78]
[1754873217900,4.07950236,182.2,182.19,0.06]
[1754873218095,4.07950236,182.2,182.19,4.74153593]
[1754873218419,0.71590869,182.24,182.19,4.74153593]
[1754873218594,4.07986329,182.23,182.2,4.68153593]
[1754873218800,4.07986329,182.22,182.21,0.72]
[1754873219713,4.07986329,182.22,182.21,4.68153593]
[1754873220549,4.07986329,182.22,182.19,0.06]
[1754873220550,9.56775361,182.22,182.19,0.06]
[1754873220834,4.07986329,182.21,182.19,0.06]
[1754873221022,4.07986329,182.2,182.19,0.06]
[1754873221408,4.07986329,182.2,182.19,4.68153593]
[1754873221706,4.07986329,182.2,182.19,0.72]
[1754873222100,9.56815144,182.21,182.19,0.06]
[1754873222300,4.76592256,182.2,182.19,0.06]
[1754873224320,4.07986329,182.2,182.19,0.06]
[1754873224523,4.07986329,182.2,182.19,4.68153593]
[1754873225033,40.11590869,182.24,182.19,4.68153593]
[1754873225235,4.0834013,182.23,182.2,4.62153593]
[1754873225535,4.0834013,182.22,182.2,4.62153593]
[1754873225718,4.08344986,182.21,182.2,4.62153593]
[1754873226337,4.08344986,182.21,182.2,0.66]
[1754873226507,4.08344986,182.23,182.2,4.62153593]
[1754873226827,45.60318018,182.24,182.21,0.66]
[1754873226828,4.08344986,182.22,182.21,0.66]
[1754873227731,4.08373235,182.22,182.21,0.66]
[1754873227932,4.08373235,182.22,182.19,4.68153593]
[1754873228149,4.08373235,182.21,182.2,0.66]
[1754873229846,4.08373235,182.21,182.19,4.02153593]
[1754873230147,0.03,182.24,182.2,4.62153593]
[1754873230353,0.03,182.24,182.21,0.66]
[1754873230354,4.08460381,182.23,182.21,0.66]
[1754873230650,6.20320294,182.24,182.21,0.66]
[1754873230651,4.08460381,182.22,182.21,0.66]
[1754873232048,14.89003429,182.22,182.19,0.06]
[1754873232224,8.71613974,182.21,182.19,0.06]
[1754873232551,8.73219901,182.2,182.19,0.06]
[1754873232750,9.40219901,182.2,182.19,0.06]
[1754873233926,14.89067321,182.2,182.19,0.06]
[1754873236343,14.89207787,182.2,182.19,0.06]
[1754873237066,29.99829344,182.2,182.19,0.06]
[1754873237972,29.99829344,182.2,182.19,1e-08]
[1754873238152,31.37183262,182.2,182.19,1e-08]
[1754873238562,27.41029669,182.2,182.19,1e-08]
[1754873238880,61.37183262,182.2,182.19,1e-08]
[1754873241469,31.37183262,182.2,182.19,1e-08]
[1754873242549,33.57114462,182.2,182.19,1e-08]
[1754873243071,63.57114462,182.2,182.19,1e-08]
[1754873244368,15.10621557,182.19,182.18,1e-08]
[1754873244564,64.57729915,182.19,182.18,1e-08]
[1754873245471,94.57729915,182.19,182.18,1e-08]
[1754873246146,100.0660746,182.19,182.18,1e-08]
[1754873246347,100.06621971,182.19,182.18,1e-08]
[1754873247046,100.06621971,182.19,182.17,1e-08]
[1754873247247,24.50989456,182.18,182.17,1e-08]
[1754873247750,26.70957056,182.18,182.17,1e-08]
[1754873248164,33.57241273,182.18,182.17,1e-08]
[1754873248354,63.57241273,182.18,182.17,1e-08]
[1754873250244,62.19864729,182.18,182.17,1e-08]
[1754873250851,63.57245709,182.18,182.17,1e-08]
[1754873252479,63.57245709,182.18,182.15,0.06]
[1754873252480,15.10621557,182.17,182.15,0.06]
[1754873252659,15.10621557,182.15,182.08,0.67]
[1754873252862,48.09382967,182.14,182.13,1e-08]
[1754873253061,26.0,182.11,182.07,0.67]
[1754873253260,44.13244449,182.1,182.07,0.67]
[1754873253469,4.08600847,182.09,182.07,0.67]
[1754873253669,4.64804735,182.08,182.07,0.67]
[1754873254976,0.68651142,182.08,182.07,0.67]
[1754873255178,3.96153593,182.08,182.07,0.67]
[1754873255771,4.64800965,182.09,182.07,0.67]
[1754873256460,4.64800965,182.09,182.07,0.73]
[1754873256662,0.68647372,182.09,182.07,0.73]
[1754873257366,0.68643602,182.1,182.07,10.18383328]
[1754873257568,0.68639833,182.11,182.07,9.51383328]
[1754873257785,0.68639833,182.11,182.08,0.67]
[1754873258278,44.00789657,182.12,182.08,0.67]
[1754873258461,44.00789657,182.12,182.08,6.16194874]
[1754873258666,40.04628527,182.14,182.09,4.63153593]
[1754873258865,40.04628527,182.14,182.09,3.96153593]
[1754873259071,40.04628527,182.14,182.1,0.67]
[1754873259680,0.68628527,182.14,182.1,4.63153593]
[1754873259979,0.68628527,182.14,182.11,0.67]
[1754873260276,0.68624759,182.15,182.11,4.63153593]
[1754873260486,43.32153593,182.16,182.12,6.16073996]
[1754873260487,0.68620992,182.16,182.12,6.16073996]
[1754873260788,0.68620992,182.16,182.13,0.67]
[1754873260789,4.64774585,182.16,182.13,0.67]
[1754873261105,0.68620992,182.16,182.14,0.67]
[1754873262392,6.17594764,182.16,182.14,0.67]
[1754873262865,8.02644272,182.15,182.11,0.67]
[1754873263061,8.02644272,182.15,182.12,0.67]
[1754873263062,0.68628527,182.14,182.12,0.67]
[1754873263265,0.68628527,182.14,182.09,4.02153593]
[1754873263266,0.68628527,182.14,182.13,0.67]
[1754873263562,0.68617225,182.17,182.13,4.63153593]
[1754873263779,4.06580724,182.16,182.14,0.67]
[1754873265606,4.06580724,182.16,182.14,4.63153593]
[1754873265803,0.68617225,182.17,182.15,0.67]
[1754873266180,40.04613459,182.18,182.15,0.67]
[1754873266380,19.3075393,182.2,182.15,4.63153593]
[1754873266381,4.06740838,182.17,182.15,4.63153593]
[1754873266581,39.37,182.2,182.16,10.12099016]
[1754873266582,0.03,182.2,182.16,10.12099016]
[1754873266780,0.03,182.2,182.17,0.67]
[1754873267005,4.09812375,182.2,182.17,0.67]
[1754873267318,4.78418302,182.2,182.17,0.67]
[1754873267487,0.71605927,182.2,182.17,0.67]
[1754873267990,0.71605927,182.2,182.18,0.67]
[1754873268815,0.71605927,182.2,182.19,0.67]
[1754873269006,4.7841293,182.2,182.19,0.67]
[1754873269518,8.74566523,182.2,182.17,0.67]
[1754873269687,8.02960596,182.19,182.15,0.67]
[1754873269887,3.96153593,182.19,182.13,3.96153593]
[1754873270121,0.68613459,182.18,182.16,0.67]
[1754873270288,4.64763286,182.19,182.16,0.67]
[1754873271011,3.96153593,182.17,182.13,5.49037292]
[1754873271208,3.96153593,182.17,182.12,3.96153593]
[1754873271209,3.96153593,182.17,182.14,0.67]
[1754873271386,0.68620992,182.16,182.14,0.67]
[1754873271808,0.68620992,182.16,182.15,0.67]
[1754873272212,0.68613459,182.18,182.15,0.67]
[1754873272396,4.06961907,182.17,182.16,0.67]
[1754873272801,4.06961907,182.17,182.12,9.4523285]
[1754873273117,4.06961907,182.17,182.14,0.67]
[1754873273118,0.68620992,182.16,182.14,0.67]
[1754873273317,0.68620992,182.16,182.15,0.67]
[1754873273503,0.68617225,182.17,182.15,0.67]
[1754873274538,4.07101363,182.16,182.12,0.67]
[1754873274818,0.68624759,182.15,182.12,0.67]
[1754873275118,0.68624759,182.15,182.1,0.67]
[1754873275119,3.96153593,182.14,182.1,0.67]
[1754873275298,3.96153593,182.14,182.09,5.55170839]
[1754873275299,0.68632295,182.13,182.11,0.67]
[1754873275487,0.68632295,182.13,182.09,0.06]
[1754873275488,4.64785888,182.13,182.09,0.06]
[1754873275686,4.64785888,182.13,182.1,0.67]
[1754873275919,3.96153593,182.12,182.1,0.67]
[1754873276138,0.68632295,182.13,182.09,0.06]
[1754873276139,4.64793426,182.11,182.09,0.06]
[1754873276725,3.96153593,182.1,182.09,0.06]
[1754873276908,8.03231554,182.1,182.09,0.06]
[1754873277888,8.70231554,182.1,182.09,0.06]
[1754873278324,8.03231554,182.1,182.09,0.06]
[1754873278512,14.19380373,182.1,182.09,0.06]
[1754873279014,8.03231554,182.1,182.09,0.06]
[1754873279200,13.52380373,182.1,182.09,0.06]
[1754873280535,8.03231554,182.1,182.09,0.06]
[1754873280725,13.52380373,182.1,182.09,0.06]
[1754873280904,29.3100193,182.1,182.09,0.06]
[1754873283222,9.5622678,182.1,182.09,0.06]
[1754873283411,14.20380373,182.1,182.09,0.06]
[1754873283852,29.3100193,182.1,182.09,0.06]
[1754873284211,29.308709,182.1,182.09,0.06]
[1754873285326,28.628709,182.1,182.09,0.06]
[1754873285721,68.628709,182.1,182.09,0.06]
[1754873285929,71.51554602,182.1,182.09,0.06]
[1754873289954,67.44607671,182.1,182.09,0.06]
[1754873290165,71.51218351,182.1,182.09,0.06]
[1754873290529,70.83218351,182.1,182.09,0.06]
[1754873290736,81.03953192,182.1,182.09,0.77]
[1754873290953,55.03953192,182.1,182.09,0.77]
[1754873291955,36.22804373,182.1,182.09,0.77]
[1754873292254,79.52556694,182.1,182.09,0.77]
[1754873292569,79.52556694,182.1,182.09,0.06]
[1754873292732,80.20556694,182.1,182.09,0.06]
[1754873292938,97.51194251,182.1,182.09,0.06]
[1754873293260,41.10621557,182.08,182.07,0.06]
[1754873293443,89.14036972,182.08,182.07,0.06]
[1754873293630,15.10621557,182.07,182.05,0.06]
[1754873293831,68.63313984,182.06,182.05,0.06]
[1754873294064,69.31313984,182.06,182.05,0.06]
[1754873294634,73.27467577,182.06,182.03,0.06]
[1754873294963,19.0677515,182.04,182.03,0.06]
[1754873295163,23.82052057,182.04,182.03,0.06]
[1754873295962,25.35228281,182.04,182.03,0.06]
[1754873296179,29.31381874,182.04,182.03,0.06]
[1754873296338,29.31381874,182.04,182.03,0.77]
[1754873296538,29.31381874,182.04,182.03,0.06]
[1754873297034,29.99381874,182.04,182.03,0.06]
[1754873299761,29.31381874,182.04,182.03,0.06]
[1754873300059,29.99381874,182.04,182.03,0.06]
[1754873300234,26.03228281,182.04,182.03,0.06]
[1754873300440,29.99381874,182.04,182.03,0.06]
[1754873301138,41.10621557,182.02,182.01,1e-08]
[1754873301345,89.12059602,182.02,182.01,1e-08]
[1754873301649,89.12059602,182.02,181.97,0.06]
[1754873301650,41.10621557,181.98,181.97,0.06]
[1754873301979,34.71453139,181.98,181.97,0.06]
[1754873302138,70.05299546,181.98,181.97,0.06]
[1754873302341,69.94842459,181.98,181.97,0.77]
[1754873302550,65.98688866,181.98,181.97,0.77]
[1754873302750,0.68688866,181.98,181.97,0.77]
[1754873302958,40.00685092,181.99,181.97,0.77]
[1754873303153,0.68685092,181.99,181.97,0.77]
[1754873303865,0.68685092,181.99,181.98,0.71]
[1754873304193,39.98681318,182.0,181.98,0.71]
[1754873304351,0.68677545,182.01,181.98,0.71]
[1754873304546,3.96153593,182.03,181.98,0.71]
[1754873304547,39.98673772,182.02,181.98,0.71]
[1754873304763,0.68673772,182.02,181.98,4.67153593]
[1754873305077,5.49308643,182.05,182.0,3.96153593]
[1754873305259,0.68666227,182.04,182.01,0.71]
[1754873305466,4.6481982,182.04,182.02,0.71]
[1754873306867,0.68666227,182.04,182.03,0.71]
[1754873307176,13.801227,182.06,182.03,0.71]
[1754873307177,0.68658683,182.06,182.03,0.71]
[1754873307379,43.94812276,182.06,182.03,0.71]
[1754873307764,39.98658683,182.06,182.03,0.71]
[1754873307991,43.94812276,182.06,182.04,0.71]
[1754873308482,39.98658683,182.06,182.05,0.71]
[1754873308649,43.94812276,182.06,182.05,0.71]
[1754873309355,0.68654912,182.07,182.05,0.71]
[1754873309578,39.3,182.07,182.05,0.71]
[1754873309978,0.68651142,182.08,182.05,0.71]
[1754873310184,43.94800965,182.09,182.06,0.7]
[1754873310387,39.98647372,182.09,182.07,0.7]
[1754873310570,39.98647372,182.09,182.04,9.45476514]
[1754873310753,39.3,182.09,182.08,0.7]
[1754873310960,0.68643602,182.1,182.08,0.7]
[1754873311278,0.68643602,182.1,182.09,0.7]
[1754873312385,4.73763553,182.1,182.09,0.7]
[1754873312557,39.3,182.11,182.09,0.7]
[1754873312764,39.98632295,182.13,182.09,4.66153593]
[1754873312965,39.98632295,182.13,182.1,0.7]